bitfinex/quotes_ETHUSD_20250930
["timestamp","ask_amount","ask_price","bid_price","bid_amount"]
[1759233338400,0.001,4174.1,4174.0,20.00330596]
[1759233338700,0.001,4174.1,4174.0,22.73830596]
[1759233338904,0.001,4174.1,4174.0,23.27470596]
[1759233339598,0.001,4174.1,4174.0,25.67470596]
[1759233341190,0.001,4174.1,4174.0,25.67670596]
[1759233343313,0.001,4174.1,4174.0,25.14030596]
[1759233343599,0.001,4174.1,4174.0,25.59330596]
[1759233344685,0.001,4174.1,4174.0,25.67920596]
[1759233345594,0.001,4174.1,4174.0,25.14030596]
[1759233346313,0.001,4174.1,4174.0,25.59330596]
[1759233346682,0.001,4174.1,4174.0,25.14030596]
[1759233351186,0.2352,4174.1,4174.0,25.14030596]
[1759233352002,0.2352,4174.1,4174.0,22.40530596]
[1759233352317,0.2352,4174.1,4174.0,25.14030596]
[1759233352620,0.001,4174.1,4174.0,25.14030596]
[1759233352988,0.2352,4174.1,4174.0,25.14030596]
[1759233353387,0.001,4174.1,4174.0,25.14030596]
[1759233353827,0.001,4174.1,4174.0,25.01830596]
[1759233354007,0.2352,4174.1,4174.0,25.01830596]
[1759233355813,0.6664,4174.1,4174.0,25.01830596]
[1759233356423,0.2352,4174.1,4174.0,25.01830596]
[1759233357530,0.001,4174.1,4174.0,25.01830596]
[1759233361538,0.2352,4174.1,4174.0,25.01830596]
[1759233362442,0.001,4174.1,4174.0,25.01830596]
[1759233362613,0.001,4174.1,4174.0,25.47130596]
[1759233362824,0.001,4174.1,4174.0,25.55720596]
[1759233363017,0.001,4174.1,4174.0,25.79140596]
[1759233363340,0.001,4174.1,4174.0,25.70550596]
[1759233364441,0.001,4174.1,4174.0,25.25250596]
[1759233364744,0.001,4174.1,4174.0,25.70550596]
[1759233365521,0.001,4174.1,4174.0,25.25250596]
[1759233373757,0.001,4174.1,4174.0,22.51850596]
[1759233373961,0.001,4174.1,4174.0,25.25250596]
[1759233374554,0.001,4174.1,4174.0,22.51850596]
[1759233374746,0.001,4174.1,4174.0,25.25250596]
[1759233375878,0.2412,4174.1,4174.0,25.25250596]
[1759233376650,0.001,4174.1,4174.0,25.25250596]
[1759233378189,0.2454,4174.1,4174.0,25.25250596]
[1759233378477,0.001,4174.1,4174.0,25.25250596]
[1759233378679,0.001,4174.1,4174.0,25.25150596]
[1759233384187,0.2454,4174.1,4174.0,25.25150596]
[1759233385304,0.001,4174.1,4174.0,25.25150596]
[1759233386502,0.2454,4174.1,4174.0,25.25150596]
[1759233387101,0.001,4174.1,4174.0,25.25150596]
[1759233388605,0.001,4174.1,4174.0,22.51850596]
[1759233388807,0.001,4174.1,4174.0,25.25150596]
[1759233403818,0.001,4174.1,4174.0,22.51850596]
[1759233404025,0.001,4174.1,4174.0,25.25050596]
[1759233404205,0.2265,4174.1,4174.0,25.25050596]
[1759233404526,0.001,4174.1,4174.0,25.25050596]
[1759233404712,0.6999,4174.1,4174.0,25.25050596]
[1759233408320,0.001,4174.1,4174.0,25.25050596]
[1759233417728,0.001,4174.1,4174.0,23.66766596]
[1759233419552,0.2265,4174.1,4174.0,23.66766596]
[1759233420050,0.001,4174.1,4174.0,23.66766596]
[1759233422357,0.001,4174.1,4174.0,20.93566596]
[1759233422558,0.001,4174.1,4174.0,23.66666596]
[1759233422852,0.2265,4174.1,4174.0,23.66666596]
[1759233423076,0.001,4174.1,4174.0,23.66666596]
[1759233424354,0.001,4174.1,4174.0,26.06397139]
[1759233426372,0.001,4176.2,4175.2,2.39507202]
[1759233426587,0.001,4176.2,4176.1,5.58657867]
[1759233426902,0.001,4176.2,4176.1,8.83060045]
[1759233427047,0.001,4176.2,4176.1,25.13653765]
[1759233427593,0.001,4176.2,4176.1,21.82483765]
[1759233427795,0.001,4176.2,4176.1,24.58183765]
[1759233428154,0.001,4176.2,4176.1,21.82483765]
[1759233428353,0.001,4176.2,4176.1,24.58183765]
[1759233432485,0.001,4176.2,4176.1,21.82483765]
[1759233432684,0.2482,4176.2,4176.1,21.82483765]
[1759233432888,0.6888,4176.2,4176.1,22.17983765]
[1759233433560,0.6888,4176.2,4176.1,18.99325898]
[1759233433759,0.6888,4176.2,4176.1,21.38783765]
[1759233433960,0.6888,4176.2,4176.1,22.17983765]
[1759233436525,0.6888,4176.2,4176.1,22.29983765]
[1759233438143,0.6888,4176.2,4176.1,22.52126056]
[1759233440622,0.2482,4176.2,4176.1,22.52126056]
[1759233442039,0.2482,4176.2,4176.1,22.42526813]
[1759233443231,0.2482,4176.2,4176.1,21.04860045]
[1759233444022,0.2482,4176.2,4176.1,18.29360045]
[1759233444224,0.2482,4176.2,4176.1,21.04460045]
[1759233447340,0.6893,4176.2,4176.1,21.04460045]
[1759233447714,0.2482,4176.2,4176.1,21.04460045]
[1759233448339,0.001,4176.2,4176.1,21.04460045]
[1759233449240,0.001,4176.2,4176.1,23.43300735]
[1759233450568,0.001,4176.2,4176.1,23.87580735]
[1759233452457,0.001,4176.2,4176.1,23.43300735]
[1759233452985,0.001,4176.2,4176.1,23.87580735]
[1759233453880,0.6885,4176.2,4176.1,23.42900735]
[1759233454893,0.001,4176.8,4176.2,1.15868231]
[1759233455184,6.99,4182.2,4177.8,0.792]
[1759233455185,5.4101668,4180.0,4177.8,0.792]
[1759233455351,5.4101668,4179.6,4177.9,2.773]
[1759233455552,5.4101668,4179.2,4178.0,14.5]
[1759233455749,2.39322272,4178.5,4178.0,14.5]
[1759233455989,2.3928597,4179.1,4178.0,14.5]
[1759233456149,2.39322656,4178.5,4178.0,14.5]
[1759233456353,2.39327161,4178.4,4178.0,14.5]
[1759233456889,0.6875,4178.3,4178.0,14.5]
[1759233457105,0.6875,4178.2,4178.0,14.5]
[1759233457272,2.3933611,4178.3,4178.0,14.5]
[1759233457602,0.92683611,4178.2,4178.0,14.5]
[1759233457802,0.6875,4178.1,4178.0,14.5]
[1759233459572,3.08093242,4178.1,4178.0,14.5]
[1759233461184,3.08093242,4178.1,4177.5,2.772]
[1759233461385,0.6875,4178.0,4177.5,2.772]
[1759233461603,3.38911024,4178.0,4177.6,14.5]
[1759233461906,3.08105587,4177.9,4177.6,14.5]
[1759233462099,0.6875,4177.8,4177.6,14.5]
[1759233462305,0.6556,4177.7,4177.6,14.5]
[1759233465075,0.7756,4177.7,4177.6,14.5]
[1759233466422,0.3452,4177.7,4177.6,14.5]
[1759233466599,0.7756,4177.7,4177.4,2.768]
[1759233466803,0.6556,4177.6,4177.4,2.768]
[1759233467004,0.6556,4177.5,4177.2,17.267]
[1759233467215,0.7756,4177.4,4177.2,2.767]
[1759233467379,0.6556,4177.3,4177.2,2.767]
[1759233467578,0.6556,4177.3,4177.2,17.267]
[1759233467809,0.6556,4177.3,4177.2,14.5]
[1759233468693,0.6556,4177.3,4176.6,3.30625242]
[1759233468694,3.04953413,4177.3,4176.6,3.30625242]
[1759233468888,0.12,4177.0,4176.7,2.767]
[1759233469095,0.2252,4176.9,4176.8,14.5]
[1759233469497,0.2252,4176.9,4176.8,17.267]
[1759233471416,0.2252,4176.9,4176.8,17.266]
[1759233472027,0.12,4177.0,4176.8,14.5]
[1759233472218,0.2252,4176.9,4176.8,17.265]
[1759233472527,0.2252,4176.9,4176.8,14.5]
[1759233472711,0.2252,4176.9,4176.8,17.265]
[1759233473893,0.2252,4176.9,4176.8,14.5]
[1759233473894,3.04972004,4176.9,4176.8,14.5]
[1759233474329,0.6556,4176.9,4176.8,14.5]
[1759233474502,3.04972004,4176.9,4176.8,14.5]
[1759233474908,0.6556,4176.9,4176.8,14.5]
[1759233477511,3.04972004,4176.9,4176.8,14.5]
[1759233478417,3.60609659,4176.9,4176.8,14.5]
[1759233480842,3.60609659,4176.9,4176.6,2.762]
[1759233481137,0.12,4176.7,4176.5,2.762]
[1759233481342,0.12,4176.7,4176.6,14.5]
[1759233487369,3.16983468,4176.7,4176.6,14.5]
[1759233487571,4.00203082,4176.7,4176.6,14.5]
[1759233490261,2.39436527,4176.5,4176.3,0.002]
[1759233490461,0.12,4176.4,4176.3,0.002]
[1759233491763,0.12,4176.4,4176.3,0.474]
[1759233492362,0.12,4176.4,4176.3,14.974]
[1759233493281,0.12,4176.4,4176.3,14.502]
[1759233497689,0.12,4176.4,4176.3,15.2066]
[1759233498090,0.12,4176.4,4176.3,17.9626]
[1759233498686,0.12,4176.4,4176.3,17.9606]
[1759233499389,0.12,4176.4,4176.3,14.502]
[1759233499590,0.12,4176.4,4176.3,17.256]
[1759233501702,0.12,4176.4,4176.3,17.255]
[1759233502093,0.12,4176.4,4176.3,14.502]
[1759233502297,0.12,4176.4,4176.3,17.255]
[1759233503282,0.2425,4177.5,4176.3,17.255]
[1759233503283,0.12,4176.6,4176.3,17.9596]
[1759233503482,0.12,4176.6,4176.4,0.72854406]
[1759233503684,0.12,4176.6,4176.5,2.752]
[1759233503884,0.12,4176.6,4176.5,3.4566]
[1759233506611,0.001,4177.1,4176.5,3.48054349]
[1759233506911,0.12,4176.8,4176.7,2.3942324]
[1759233507111,0.12,4176.8,4176.7,5.1452324]
[1759233507280,0.12,4176.8,4176.7,5.8498324]
[1759233507480,0.12,4176.8,4176.7,20.3498324]
[1759233510715,0.12,4176.8,4176.7,14.5]
[1759233510882,0.3625,4176.8,4176.7,14.5]
[1759233511619,0.3625,4176.8,4176.7,17.249]
[1759233512110,0.3625,4176.8,4176.7,14.5]
[1759233512311,0.7957,4176.8,4176.7,17.249]
[1759233512516,0.12,4176.8,4176.7,17.249]
[1759233514518,0.12,4176.8,4176.7,19.64323468]
[1759233515215,0.12,4176.8,4176.7,20.11513468]
[1759233515606,0.12,4176.8,4176.7,17.7209]
[1759233516412,0.12,4176.8,4176.7,20.11513468]
[1759233516726,0.12,4176.8,4176.7,20.34783468]
[1759233517535,0.12,4176.8,4176.7,20.11513468]
[1759233518834,0.2425,4177.2,4176.7,20.11513468]
[1759233518835,3.0477,4177.3,4176.7,20.11513468]
[1759233519006,0.12,4176.9,4176.8,0.2327]
[1759233520735,0.12,4176.9,4176.7,17.249]
[1759233520940,0.12,4176.9,4176.7,19.87592419]
[1759233521137,0.12,4176.9,4176.7,17.4817]
[1759233521703,0.12,4176.9,4176.7,19.8759254]
[1759233522532,0.12,4176.9,4176.7,17.4817]
[1759233523018,0.12,4176.9,4176.7,19.87593426]
[1759233523219,0.12,4176.9,4176.7,17.4817]
[1759233523730,0.12,4176.9,4176.7,19.87592401]
[1759233523896,0.12,4176.9,4176.7,17.4817]
[1759233525161,0.12,4176.9,4176.7,19.64322754]
[1759233525339,0.12,4176.9,4176.7,19.88812754]
[1759233527364,0.12,4176.9,4176.7,17.4939]
[1759233527866,0.12,4176.9,4176.8,2.39417736]
[1759233528168,0.12,4176.9,4176.8,0.2449]
[1759233528542,0.12,4176.9,4176.8,2.39417736]
[1759233528742,0.12,4176.9,4176.8,0.6785]
[1759233528972,0.12,4176.9,4176.8,0.2449]
[1759233530942,0.12,4176.9,4176.8,14.7449]
[1759233533175,0.12,4176.9,4176.8,17.13907736]
[1759233533775,0.12,4176.9,4176.8,14.7449]
[1759233534081,0.12,4176.9,4176.8,17.13907736]
[1759233534253,0.12,4176.9,4176.8,14.7449]
[1759233534451,0.12,4176.9,4176.8,17.4849]
[1759233534652,0.12,4176.9,4176.8,17.24]
[1759233541102,0.12,4176.9,4176.8,19.63417736]
[1759233541898,0.12,4176.9,4176.8,17.24]
[1759233543170,0.3533,4176.9,4176.8,17.237]
[1759233543370,0.8067,4176.9,4176.8,17.237]
[1759233544905,3.20082004,4176.9,4176.8,14.5]
[1759233545610,3.7604046,4176.9,4176.8,14.5]
[1759233545769,2.39423468,4176.7,4176.6,0.002]
[1759233546171,3.08093468,4176.7,4176.6,0.002]
[1759233549017,3.19710359,4176.7,4176.6,0.002]
[1759233552988,3.19010359,4176.7,4176.6,0.002]
[1759233553308,5.12657088,4176.7,4176.6,0.002]
[1759233553909,5.22260918,4176.7,4176.6,0.002]
[1759233554623,4.70564905,4176.7,4176.6,0.002]
[1759233555611,7.44364905,4176.7,4176.6,0.002]
[1759233557889,9.84364905,4176.7,4176.6,0.002]
[1759233558106,10.36060918,4176.7,4176.6,0.002]
[1759233574254,9.68041203,4176.7,4176.6,0.002]
[1759233574621,9.92671203,4176.7,4176.6,0.002]
[1759233574817,10.37031203,4176.7,4176.6,0.002]
[1759233575352,9.68041203,4176.7,4176.6,0.002]
[1759233576121,9.92671203,4176.7,4176.6,0.002]
[1759233577146,9.68041203,4176.7,4176.6,0.002]
[1759233578746,9.92671203,4176.7,4176.6,0.002]
[1759233579053,10.37031203,4176.7,4176.6,0.002]
[1759233581625,9.92671203,4176.7,4176.6,0.002]
[1759233583427,9.68041203,4176.7,4176.6,0.002]
[1759233588456,9.92741203,4176.7,4176.6,0.002]
[1759233588658,10.35901203,4176.7,4176.6,0.002]
[1759233592296,9.68041203,4176.7,4176.6,0.002]
[1759233592491,7.80887351,4176.3,4176.2,0.002]
[1759233592668,11.18233649,4176.3,4176.2,0.002]
[1759233593056,11.95699208,4176.3,4176.2,0.002]
[1759233593294,14.35699208,4176.3,4176.2,0.002]
[1759233593519,14.35699208,4176.3,4176.1,0.002]
[1759233593520,4.79452133,4176.2,4176.1,1e-08]
[1759233593695,7.14983091,4176.2,4176.1,1e-08]
[1759233594057,2.39469335,4175.9,4175.8,1e-08]
[1759233594307,13.58256585,4175.9,4175.8,1e-08]
[1759233594472,14.26116585,4175.9,4175.8,1e-08]
[1759233594868,14.35723898,4175.9,4175.8,1e-08]
[1759233595069,14.91682354,4175.9,4175.8,1e-08]
[1759233595270,14.91682354,4175.9,4173.9,0.5702]
[1759233595271,2.39509484,4175.2,4174.9,0.2461]
[1759233595596,12.94650436,4175.2,4174.9,0.2461]
[1759233595795,13.46428832,4175.2,4174.9,0.2461]
[1759233595963,13.71038832,4175.2,4174.9,0.2461]
[1759233596162,13.71038832,4175.2,4174.7,0.4502]
[1759233596163,15.12989548,4175.2,4174.7,0.4502]
[1759233596388,15.12989548,4175.2,4174.7,0.6963]
[1759233596585,15.12989548,4175.2,4174.0,0.002]
[1759233596797,15.80849548,4175.2,4174.6,0.2461]
[1759233597193,15.80849548,4175.2,4174.7,0.2461]
[1759233597878,15.12989548,4175.2,4174.7,0.2461]
[1759233598187,15.12989548,4175.2,4174.0,0.002]
[1759233598396,15.80849548,4175.2,4174.0,0.002]
[1759233598576,15.37689548,4175.2,4174.4,0.4502]
[1759233598770,15.37689548,4175.2,4174.7,0.2461]
[1759233600229,15.80849548,4175.2,4174.3,0.2461]
[1759233600394,15.80849548,4175.2,4174.4,0.2461]
[1759233600790,15.80849548,4175.2,4174.4,0.6963]
[1759233601228,15.80849548,4175.2,4174.5,0.2461]
[1759233601900,15.80849548,4175.2,4174.4,0.2461]
[1759233602622,15.80849548,4175.2,4174.2,0.2461]
[1759233602791,15.80849548,4175.2,4174.0,0.002]
[1759233602792,15.80849548,4175.2,4174.3,0.4502]
[1759233602992,2.39555385,4174.4,4174.3,0.4502]
[1759233603223,2.39572602,4174.1,4174.0,0.4522]
[1759233603423,5.13372602,4174.1,4174.0,0.4522]
[1759233603629,5.85445799,4174.1,4174.0,0.4522]
[1759233603837,5.85445799,4174.1,4174.0,0.002]
[1759233604594,5.85445799,4174.1,4174.0,0.4522]
[1759233605019,5.85445799,4174.1,4174.0,0.6983]
[1759233605297,5.97445799,4174.1,4174.0,0.002]
[1759233606105,12.48938536,4174.1,4174.0,0.002]
[1759233606333,14.88938536,4174.1,4174.0,0.002]
[1759233606794,16.08317496,4174.1,4174.0,0.002]
[1759233607221,15.65157496,4174.1,4174.0,0.002]
[1759233607420,10.21042255,4173.6,4173.5,1e-08]
[1759233607626,14.32905857,4173.6,4173.5,1e-08]
[1759233608135,14.42518064,4173.6,4173.5,1e-08]
[1759233609100,15.10378064,4173.6,4173.5,1e-08]
[1759233609631,14.67218064,4173.6,4173.5,1e-08]
[1759233609797,15.61825184,4173.6,4173.5,1e-08]
[1759233610300,14.42518064,4173.6,4173.5,1e-08]
[1759233610533,15.10378064,4173.6,4173.5,1e-08]
[1759233611240,14.67218064,4173.6,4173.5,1e-08]
[1759233611544,15.61786467,4173.6,4173.5,1e-08]
[1759233611697,14.93926467,4173.6,4173.5,1e-08]
[1759233612101,15.61786293,4173.6,4173.5,1e-08]
[1759233612508,15.18626293,4173.6,4173.5,1e-08]
[1759233613136,14.42518064,4173.6,4173.5,1e-08]
[1759233613732,14.65298064,4173.6,4173.5,1e-08]
[1759233615844,14.42518064,4173.6,4173.5,0.47210001]
[1759233616045,14.42518064,4173.6,4173.5,1e-08]
[1759233616251,13.6976478,4173.6,4173.5,1e-08]
[1759233617760,5.0121351,4173.6,4173.5,0.67100001]
[1759233618057,5.2301351,4173.6,4173.5,0.67100001]
[1759233618241,2.83412207,4173.6,4173.5,0.67100001]
[1759233618443,5.2301351,4173.6,4173.5,0.67100001]
[1759233619618,5.2301351,4173.6,4173.5,15.17100001]
[1759233620055,5.2301351,4173.6,4173.5,0.67100001]
[1759233620438,6.46142673,4173.6,4173.5,1e-08]
[1759233620847,6.46142673,4173.6,4173.5,0.43350001]
[1759233621047,5.2301351,4173.6,4173.5,0.43350001]
[1759233621236,5.2301351,4173.6,4173.5,0.67100001]
[1759233622557,5.13401303,4173.6,4173.5,1e-08]
[1759233622766,5.13401303,4173.6,4173.5,0.67100001]
[1759233624946,5.13401303,4173.6,4173.5,1e-08]
[1759233625260,6.58989582,4173.6,4173.5,1e-08]
[1759233625453,6.35569582,4173.6,4173.5,1e-08]
[1759233626054,6.68601165,4173.6,4173.5,1e-08]
[1759233628166,9.20601165,4173.6,4173.5,1e-08]
[1759233628340,9.72191713,4173.6,4173.5,1e-08]
[1759233628954,9.48771713,4173.6,4173.5,1e-08]
[1759233629154,9.48871713,4173.6,4173.5,1e-08]
[1759233629671,9.72291713,4173.6,4173.5,1e-08]
[1759233630582,10.17401713,4173.6,4173.5,1e-08]
[1759233631982,9.72291713,4173.6,4173.5,1e-08]
[1759233633080,10.17401713,4173.6,4173.5,1e-08]
[1759233635970,6.98491713,4173.6,4173.5,1e-08]
[1759233636249,14.17559381,4173.6,4173.5,1e-08]
[1759233639692,14.40979381,4173.6,4173.5,1e-08]
[1759233643515,14.17559381,4173.6,4173.5,1e-08]
[1759233646528,14.41279381,4173.6,4173.5,1e-08]
[1759233647531,19.54257049,4173.6,4173.5,1e-08]
[1759233647903,14.85569381,4173.6,4173.5,1e-08]
[1759233649022,19.54257049,4173.6,4173.5,1e-08]
[1759233649333,2.39630011,4173.1,4173.0,0.002]
[1759233649498,13.33633509,4173.1,4173.0,0.002]
[1759233649698,14.01643509,4173.1,4173.0,0.002]
[1759233649928,14.11257056,4173.1,4173.0,0.002]
[1759233652130,13.66967056,4173.1,4173.0,0.002]
[1759233652344,14.11257056,4173.1,4173.0,0.002]
[1759233652841,13.66967056,4173.1,4173.0,0.002]
[1759233654244,14.11257056,4173.1,4173.0,0.002]
[1759233660248,2.4,4173.0,4172.6,0.002]
[1759233660446,7.0834065,4172.7,4172.6,0.002]
[1759233660649,7.65452982,4172.7,4172.6,0.002]
[1759233660814,8.1704353,4172.7,4172.6,0.002]
[1759233661014,8.1704353,4172.7,4172.6,0.6697]
[1759233665436,8.8401353,4172.7,4172.6,0.6697]
[1759233665820,8.1704353,4172.7,4172.6,0.6697]
[1759233666045,8.32422982,4172.7,4172.6,0.6697]
[1759233666247,8.8401353,4172.7,4172.6,0.6697]
[1759233668859,5.4324353,4172.7,4172.6,0.6697]
[1759233669025,7.65452982,4172.7,4172.6,0.6697]
[1759233670863,7.65452982,4172.7,4172.6,0.002]
[1759233671055,9.53129463,4172.7,4172.6,0.002]
[1759233671255,9.62742871,4172.7,4172.6,0.002]
[1759233671442,9.50742871,4172.7,4172.6,0.002]
[1759233671759,9.95032871,4172.7,4172.6,0.002]
[1759233673067,9.50742871,4172.7,4172.6,0.002]
[1759233673751,9.27022871,4172.7,4172.6,0.002]
[1759233673958,9.27022871,4172.7,4172.6,0.4385]
[1759233674659,9.27022871,4172.7,4172.6,0.6676]
[1759233675372,9.27022871,4172.7,4172.6,0.4385]
[1759233675560,9.27022871,4172.7,4172.6,0.002]
[1759233676073,9.27022871,4172.7,4172.6,0.6676]
[1759233676264,8.14656938,4172.7,4172.6,0.6676]
[1759233676568,8.14656938,4172.7,4172.6,0.002]
[1759233676773,8.0504353,4172.7,4172.6,0.002]
[1759233677251,8.0504353,4172.7,4172.6,0.472]
[1759233677961,8.0504353,4172.7,4172.6,0.002]
[1759233679178,8.0504353,4172.7,4172.6,0.7118]
[1759233680669,8.0504353,4172.7,4172.6,0.002]
[1759233680885,8.0504353,4172.7,4172.6,0.7118]
[1759233681451,8.1704353,4172.7,4172.6,0.7118]
[1759233681784,8.1704353,4172.7,4172.6,0.002]
[1759233683367,8.8802353,4172.7,4172.6,0.002]
[1759233684563,10.03164463,4172.7,4172.6,0.002]
[1759233684779,10.26804463,4172.7,4172.6,0.002]
[1759233685286,10.03164463,4172.7,4172.6,0.002]
[1759233686895,10.26804463,4172.7,4172.6,0.002]
[1759233687692,10.70914463,4172.7,4172.6,0.002]
[1759233687856,7.82392686,4172.2,4172.1,0.002]
[1759233688058,13.47364936,4172.2,4172.1,0.002]
[1759233688257,13.83004936,4172.2,4172.1,0.002]
[1759233688460,14.55112607,4172.2,4172.1,0.002]
[1759233688789,14.99222607,4172.2,4172.1,0.002]
[1759233688990,16.73112305,4172.2,4172.1,0.002]
[1759233690266,16.85058203,4172.2,4172.1,0.002]
[1759233691705,16.40948203,4172.2,4172.1,0.002]
[1759233691866,16.17308203,4172.2,4172.1,0.002]
[1759233693997,3.75325819,4172.2,4172.1,0.7118]
[1759233694174,5.85489373,4172.2,4172.1,0.7118]
[1759233696404,5.85489373,4172.2,4172.1,0.472]
[1759233696582,5.97036966,4172.2,4172.1,0.472]
[1759233697640,5.97036966,4172.2,4172.1,0.002]
[1759233703044,7.632717,4172.2,4172.1,0.002]
[1759233703252,7.58971152,4172.2,4172.1,0.002]
[1759233703454,8.105617,4172.2,4172.1,0.002]
[1759233703839,7.11681152,4172.2,4172.1,0.002]
[1759233704153,7.752717,4172.2,4172.1,0.002]
[1759233704310,7.23681152,4172.2,4172.1,0.002]
[1759233704515,7.752717,4172.2,4172.1,0.002]
[1759233704916,7.00231152,4172.2,4172.1,0.002]
[1759233705119,7.752717,4172.2,4172.1,0.002]
[1759233705324,7.70971152,4172.2,4172.1,0.002]
[1759233705524,8.225617,4172.2,4172.1,0.002]
[1759233706049,7.752717,4172.2,4172.1,0.002]
[1759233706273,8.225617,4172.2,4172.1,0.002]
[1759233706476,7.752717,4172.2,4172.1,0.002]
[1759233706822,6.60627514,4172.2,4172.1,0.002]
[1759233707157,6.09036966,4172.2,4172.1,0.6856]
[1759233707467,3.35336966,4172.2,4172.1,0.6856]
[1759233707672,6.09036966,4172.2,4172.1,0.6856]
[1759233707967,6.09036966,4172.2,4172.1,0.002]
[1759233708121,6.60627514,4172.2,4172.1,0.002]
[1759233708464,6.09036966,4172.2,4172.1,0.002]
[1759233708792,6.60627514,4172.2,4172.1,0.002]
[1759233708934,7.01412152,4172.2,4172.1,0.002]
[1759233709134,7.764527,4172.2,4172.1,0.002]
[1759233709547,7.24862152,4172.2,4172.1,0.002]
[1759233709728,7.764527,4172.2,4172.1,0.002]
[1759233710059,7.72152152,4172.2,4172.1,0.002]
[1759233710258,8.237427,4172.2,4172.1,0.002]
[1759233712450,7.764527,4172.2,4172.1,0.002]
[1759233714807,8.237427,4172.2,4172.1,0.002]
[1759233715373,10.637427,4172.2,4172.1,0.002]
[1759233717905,10.164527,4172.2,4172.1,0.002]
[1759233718072,9.930027,4172.2,4172.1,0.002]
[1759233720052,10.637427,4172.2,4172.1,0.002]
[1759233720804,9.930027,4172.2,4172.1,0.002]
[1759233727413,6.26927514,4172.2,4172.1,0.002]
[1759233727620,9.00527514,4172.2,4172.1,0.6856]
[1759233728155,9.00527514,4172.2,4172.1,0.4535]
[1759233728527,9.00527514,4172.2,4172.1,0.002]
[1759233739752,9.23097514,4172.2,4172.1,0.002]
[1759233740049,10.86273049,4172.2,4172.1,0.002]
[1759233740981,10.63703049,4172.2,4172.1,0.002]
[1759233741387,1.47245812,4172.2,4172.1,0.7222]
[1759233741548,6.60527514,4172.2,4172.1,0.7222]
[1759233742963,5.88419843,4172.2,4172.1,0.7222]
[1759233743650,5.88419843,4172.2,4172.1,0.4762]
[1759233745785,5.88419843,4172.2,4172.1,0.002]
[1759233746197,5.36829295,4172.2,4172.1,0.002]
[1759233746397,5.88419843,4172.2,4172.1,0.002]
[1759233746770,5.36829295,4172.2,4172.1,0.002]
[1759233746970,5.88419843,4172.2,4172.1,0.002]
[1759233747173,5.36829295,4172.2,4172.1,0.002]
[1759233747372,5.88419843,4172.2,4172.1,0.002]
[1759233748809,5.88642037,4172.2,4172.1,0.002]
[1759233749885,6.11212037,4172.2,4172.1,0.002]
[1759233750084,5.88642037,4172.2,4172.1,0.002]
[1759233750786,3.48960335,4172.2,4172.1,0.4762]
[1759233750985,5.88642037,4172.2,4172.1,0.002]
[1759233751190,5.36829295,4172.2,4172.1,0.7222]
[1759233751701,3.48960335,4172.2,4172.1,0.7222]
[1759233752001,2.97147593,4172.2,4172.1,0.7222]
[1759233752209,5.36829295,4172.2,4172.1,0.7222]
[1759233752397,5.88642037,4172.2,4172.1,0.7222]
[1759233752601,5.36829295,4172.2,4172.1,0.7222]
[1759233752795,5.36829295,4172.2,4172.1,0.4762]
[1759233752976,5.88642037,4172.2,4172.1,0.4762]
[1759233753175,5.36829295,4172.2,4172.1,0.002]
[1759233753406,6.11212037,4172.2,4172.1,0.002]
[1759233753611,5.59399295,4172.2,4172.1,0.002]
[1759233753814,6.11212037,4172.2,4172.1,0.002]
[1759233754016,5.59399295,4172.2,4172.1,0.002]
[1759233754206,6.11212037,4172.2,4172.1,0.002]
[1759233755984,5.88642037,4172.2,4172.1,0.002]
[1759233756687,3.48960335,4172.2,4172.1,0.002]
[1759233757006,5.88642037,4172.2,4172.1,0.002]
[1759233758114,3.48960335,4172.2,4172.1,0.002]
[1759233758418,5.88642037,4172.2,4172.1,0.002]
[1759233759120,5.77094444,4172.2,4172.1,0.002]
[1759233759619,5.77094444,4172.2,4172.1,0.4762]
[1759233759620,3.37412742,4172.2,4172.1,0.4762]
[1759233759789,2.856,4172.2,4172.1,0.4762]
[1759233760183,5.77094444,4172.2,4172.1,0.4762]
[1759233760415,5.25281702,4172.2,4172.1,0.4762]
[1759233760596,2.856,4172.2,4172.1,0.4762]
[1759233760798,3.37412742,4172.2,4172.1,0.002]
[1759233760981,2.856,4172.2,4172.1,0.7222]
[1759233761183,3.37412742,4172.2,4172.1,0.7222]
[1759233762092,5.25281702,4172.2,4172.1,0.7222]
[1759233762600,5.77094444,4172.2,4172.1,0.7222]
[1759233762918,5.50051702,4172.2,4172.1,0.002]
[1759233763126,6.01864444,4172.2,4172.1,0.002]
[1759233767428,5.77094444,4172.2,4172.1,0.002]
[1759233770338,3.37412742,4172.2,4172.1,0.002]
[1759233770539,3.37212742,4172.2,4172.1,1.4991]
[1759233770730,2.854,4172.2,4172.1,1.4991]
[1759233770926,5.25081702,4172.2,4172.1,0.002]
[1759233771129,5.76894444,4172.2,4172.1,0.002]
[1759233771630,5.76894444,4172.2,4172.1,1.4991]
[1759233772031,5.76894444,4172.2,4172.1,1.254]
[1759233772334,5.25081702,4172.2,4172.1,1.254]
[1759233772714,5.76894444,4172.2,4172.1,1.254]
[1759233772914,5.25081702,4172.2,4172.1,1.254]
[1759233773115,5.76894444,4172.2,4172.1,1.254]
[1759233773315,5.25081702,4172.2,4172.1,1.254]
[1759233773513,5.76894444,4172.2,4172.1,1.254]
[1759233773713,5.25081702,4172.2,4172.1,1.254]
[1759233773944,5.76894444,4172.2,4172.1,1.254]
[1759233774141,5.25081702,4172.2,4172.1,1.254]
[1759233774331,5.76894444,4172.2,4172.1,1.254]